bitfinex/quotes_BTCUSD_20241025
["timestamp","ask_amount","ask_price","bid_price","bid_amount"]
[1729899616781,0.52722929,66363.0,66345.0,0.002]
[1729899616782,0.22585429,66363.0,66356.0,0.00440145]
[1729899617024,0.22585429,66363.0,66360.0,0.00440145]
[1729899617230,0.150681,66366.0,66360.0,0.00440145]
[1729899617685,0.23880725,66368.0,66360.0,0.00440145]
[1729899617686,0.15069,66361.0,66360.0,0.00440145]
[1729899617917,0.151505,66364.0,66360.0,0.00440145]
[1729899618128,0.150686,66363.0,66360.0,0.00440145]
[1729899618341,0.00082,66364.0,66360.0,0.00440145]
[1729899618828,0.00082,66364.0,66363.0,0.00440145]
[1729899620637,0.00082,66363.0,66360.0,0.00440145]
[1729899620852,0.15069,66361.0,66360.0,0.00440145]
[1729899621062,0.1960602,66361.0,66360.0,0.00440145]
[1729899621290,0.00082,66363.0,66351.0,0.22585429]
[1729899621291,0.00082,66363.0,66357.0,0.00440145]
[1729899621503,0.00082,66363.0,66359.0,0.00440145]
[1729899621763,0.00082,66363.0,66353.0,0.00440145]
[1729899621764,0.301386,66360.0,66353.0,0.00440145]
[1729899621996,0.15132381,66363.0,66354.0,0.22585429]
[1729899621997,0.301395,66358.0,66354.0,0.22585429]
[1729899622213,0.35842752,66362.0,66351.0,0.00440145]
[1729899622214,0.15050381,66357.0,66352.0,0.22585429]
[1729899622421,0.150708,66354.0,66352.0,0.22585429]
[1729899622875,0.302191,66364.0,66361.0,0.00440145]
[1729899623122,0.15050381,66362.0,66354.0,0.00440145]
[1729899623339,0.28711039,66363.0,66361.0,0.00440145]
[1729899623340,0.00082,66363.0,66361.0,0.00440145]
[1729899623564,0.00082,66363.0,66357.0,0.002]
[1729899623565,0.00082,66363.0,66362.0,0.15508945]
[1729899623784,0.00082,66363.0,66362.0,0.15708945]
[1729899624016,0.00082,66363.0,66362.0,0.32560648]
[1729899624239,0.00082,66363.0,66362.0,0.32259326]
[1729899624493,0.00082,66363.0,66362.0,0.32059326]
[1729899625357,0.00082,66363.0,66362.0,0.32259326]
[1729899626860,0.00082,66363.0,66362.0,0.31259326]
[1729899627084,0.00082,66363.0,66362.0,0.00440145]
[1729899627522,0.301377,66362.0,66357.0,0.00440145]
[1729899627735,0.15069,66361.0,66360.0,0.00440145]
[1729899627964,0.301377,66362.0,66349.0,0.002]
[1729899628242,0.301381,66361.0,66354.0,0.00440145]
[1729899628463,0.301381,66361.0,66348.0,0.22684219]
[1729899628464,0.35842752,66352.0,66348.0,0.0009879]
[1729899628673,0.150715,66350.0,66349.0,0.22585429]
[1729899628888,0.15050381,66350.0,66346.0,0.00164]
[1729899629096,0.150722,66347.0,66346.0,0.00164]
[1729899629345,0.30122581,66347.0,66346.0,0.00164]
[1729899630492,0.150722,66347.0,66346.0,0.00164]
[1729899630726,0.22585429,66357.0,66346.0,0.00164]
[1729899630943,0.301414,66354.0,66346.0,0.00164]
[1729899631147,0.15050381,66353.0,66346.0,0.00164]
[1729899631354,0.150722,66347.0,66346.0,0.00164]
[1729899631561,0.150722,66348.0,66346.0,0.00164]
[1729899631797,0.301431,66350.0,66346.0,0.00164]
[1729899631798,0.150722,66347.0,66346.0,0.00164]
[1729899632460,0.24113128,66347.0,66346.0,0.00164]
[1729899632704,0.301411,66355.0,66349.0,0.00440145]
[1729899632705,0.150709,66353.0,66349.0,0.00440145]
[1729899632946,0.452115,66355.0,66354.0,0.00440145]
[1729899633162,0.301411,66355.0,66353.0,0.00440145]
[1729899633376,0.210987,66354.0,66353.0,0.00440145]
[1729899633585,0.150706,66354.0,66353.0,0.00440145]
[1729899633801,0.150706,66354.0,66346.0,0.154364]
[1729899633802,0.00082,66364.0,66358.0,0.00440145]
[1729899634014,0.150694,66360.0,66358.0,0.00440145]
[1729899634227,0.150694,66360.0,66351.0,0.002]
[1729899634228,0.151505,66364.0,66360.0,0.00440145]
[1729899634446,0.15069,66361.0,66360.0,0.00440145]
[1729899634679,0.00082,66364.0,66362.0,0.00440145]
[1729899635100,0.00082,66364.0,66362.0,0.00540145]
[1729899635310,0.00082,66364.0,66362.0,0.00440145]
[1729899636045,0.00082,66364.0,66353.0,0.005]
[1729899636046,0.00082,66364.0,66361.0,0.00440145]
[1729899636279,0.150688,66362.0,66361.0,0.00440145]
[1729899636500,0.150688,66362.0,66355.0,0.00440145]
[1729899636501,0.150702,66356.0,66355.0,0.00440145]
[1729899638026,0.150699,66358.0,66355.0,0.00440145]
[1729899638238,0.301386,66360.0,66355.0,0.00440145]
[1729899638459,0.45188981,66360.0,66355.0,0.00440145]
[1729899638715,0.00082,66364.0,66362.0,0.00440145]
[1729899639161,0.00082,66364.0,66362.0,0.20825422]
[1729899639380,0.00082,66364.0,66362.0,0.21126763]
[1729899639602,0.00082,66364.0,66362.0,0.16010286]
[1729899640063,0.00082,66364.0,66362.0,0.16208945]
[1729899640491,0.00082,66364.0,66362.0,0.15708945]
[1729899640708,0.00082,66364.0,66362.0,0.15508945]
[1729899640921,0.00082,66364.0,66362.0,0.00440145]
[1729899643138,0.150688,66362.0,66361.0,0.00440145]
[1729899644479,0.00082,66364.0,66362.0,0.00440145]
[1729899644916,0.1968731,66363.0,66362.0,0.00440145]
[1729899645212,0.150693,66360.0,66359.0,0.00440145]
[1729899646322,0.35842752,66362.0,66355.0,0.00440145]
[1729899646548,0.150709,66353.0,66352.0,0.00440145]
[1729899646768,0.38963909,66353.0,66352.0,0.00440145]
[1729899646981,0.301432,66350.0,66344.0,0.00440145]
[1729899647206,0.150722,66347.0,66344.0,0.00440145]
[1729899647463,0.150722,66347.0,66346.0,0.00164]
[1729899649687,0.30122581,66347.0,66346.0,0.00164]
[1729899650164,0.34748833,66347.0,66346.0,0.00164]
[1729899651306,0.42988833,66347.0,66346.0,0.00164]
[1729899651537,0.54222654,66347.0,66346.0,0.00164]
[1729899652169,0.72802509,66347.0,66346.0,0.00164]
[1729899652382,0.72742654,66347.0,66346.0,0.00164]
[1729899653494,0.34748833,66347.0,66346.0,0.00164]
[1729899653974,0.30122581,66347.0,66346.0,0.00164]
[1729899655690,0.30204581,66347.0,66346.0,0.00164]
[1729899656211,0.34823805,66347.0,66346.0,0.00164]
[1729899657741,0.19773424,66347.0,66346.0,0.00164]
[1729899658025,0.151542,66347.0,66346.0,0.00164]
[1729899658742,0.121542,66347.0,66346.0,0.00164]
[1729899659510,0.63068827,66347.0,66346.0,0.00164]
[1729899659744,0.27204581,66347.0,66346.0,0.00164]
[1729899660490,0.121542,66347.0,66346.0,0.00164]
[1729899661733,0.121542,66347.0,66346.0,0.00604145]
[1729899661734,0.00082,66347.0,66346.0,0.00604145]
[1729899662003,0.00082,66347.0,66346.0,0.00804145]
[1729899663041,0.00082,66347.0,66346.0,0.00604145]
[1729899663306,0.1817673,66347.0,66346.0,0.00164]
[1729899663860,0.52597111,66347.0,66346.0,0.00164]
[1729899664125,0.64838013,66347.0,66346.0,0.00164]
[1729899664419,1.35063452,66347.0,66346.0,0.00164]
[1729899664885,1.4634475,66347.0,66346.0,0.00164]
[1729899665127,1.4634475,66347.0,66338.0,0.000852]
[1729899665128,0.00059855,66340.0,66338.0,0.000852]
[1729899665377,0.55559293,66339.0,66338.0,0.000852]
[1729899665617,0.80559293,66339.0,66338.0,0.000852]
[1729899665878,0.81059293,66339.0,66338.0,0.000852]
[1729899666108,0.56059293,66339.0,66338.0,0.000852]
[1729899666587,0.60492711,66339.0,66338.0,0.000852]
[1729899666841,0.7856289,66339.0,66338.0,0.000852]
[1729899667136,0.7554036,66339.0,66338.0,0.000852]
[1729899667371,0.71109674,66339.0,66338.0,0.000852]
[1729899669031,0.19695047,66339.0,66338.0,0.000852]
[1729899669324,0.15074,66339.0,66338.0,0.00525345]
[1729899669567,0.150727,66345.0,66344.0,0.00440145]
[1729899671357,0.77715362,66345.0,66340.0,0.00440145]
[1729899671594,0.38972624,66339.0,66338.0,0.000852]
[1729899671830,0.54023005,66339.0,66338.0,0.000852]
[1729899674076,0.58639021,66339.0,66338.0,0.000852]
[1729899674300,0.81137014,66339.0,66338.0,0.000852]
[1729899674491,0.92218471,66339.0,66338.0,0.000852]
[1729899674799,0.96651525,66339.0,66338.0,0.000852]
[1729899675027,0.85570068,66339.0,66338.0,0.000852]
[1729899675251,0.85569807,66339.0,66338.0,0.000852]
[1729899676140,0.81137014,66339.0,66338.0,0.000852]
[1729899678620,1.05535638,66339.0,66338.0,0.000852]
[1729899678857,0.88290051,66339.0,66338.0,0.000852]
[1729899679136,1.05535638,66339.0,66338.0,0.000852]
[1729899679395,1.09970952,66339.0,66338.0,0.000852]
[1729899679644,1.05535638,66339.0,66338.0,0.000852]
[1729899679873,0.81637014,66339.0,66338.0,0.000852]
[1729899681314,1.05535638,66339.0,66338.0,0.000852]
[1729899681571,0.81637014,66339.0,66338.0,0.000852]
[1729899682083,0.58639021,66339.0,66338.0,0.000852]
[1729899683107,0.19690016,66339.0,66338.0,0.000852]
[1729899683376,0.04616016,66339.0,66338.0,0.00525345]
[1729899683621,0.301451,66346.0,66342.0,0.002]
[1729899683863,0.22585429,66350.0,66346.0,0.00440145]
[1729899684106,0.15072,66349.0,66346.0,0.00440145]
[1729899684372,0.15071,66353.0,66346.0,0.15512545]
[1729899684622,0.301427,66351.0,66346.0,0.00640145]
[1729899684821,0.301404,66356.0,66346.0,0.00640145]
[1729899685028,0.150709,66353.0,66346.0,0.15712545]
[1729899685251,0.301404,66356.0,66346.0,0.00440145]
[1729899685480,0.150712,66352.0,66346.0,0.00640145]
[1729899685664,0.301389,66360.0,66346.0,0.16212545]
[1729899685937,0.301411,66355.0,66346.0,0.16212545]
[1729899686152,0.301411,66355.0,66346.0,0.16012545]
[1729899686605,0.602822,66355.0,66346.0,0.01140145]
[1729899686810,0.602822,66355.0,66346.0,0.00940145]
[1729899686811,0.150716,66350.0,66346.0,0.00940145]
[1729899687044,0.150725,66346.0,66341.0,0.150734]
[1729899687274,0.151542,66347.0,66346.0,0.00440145]
[1729899688353,0.151542,66347.0,66346.0,0.15712545]
[1729899688354,0.00082,66347.0,66346.0,0.15712545]
[1729899688595,0.00082,66347.0,66346.0,0.32564329]
[1729899688820,0.00082,66347.0,66346.0,0.46723909]
[1729899689037,0.00082,66363.0,66362.0,0.00440145]
[1729899689264,0.00082,66363.0,66362.0,0.15708945]
[1729899689704,0.00082,66363.0,66362.0,0.00640145]
[1729899691045,0.00082,66363.0,66362.0,0.31560672]
[1729899691268,0.00082,66363.0,66362.0,0.38529233]
[1729899691487,0.00082,66363.0,66362.0,0.70617857]
[1729899691700,0.22585429,66380.0,66379.0,0.00640145]
[1729899692393,0.150638,66385.0,66382.0,0.002]
[1729899692605,0.22585429,66387.0,66386.0,0.00440145]
[1729899692606,0.37648529,66387.0,66386.0,0.00440145]
[1729899693036,0.150631,66387.0,66386.0,0.00440145]
[1729899695497,0.00082,66392.0,66391.0,0.15502345]
[1729899695712,0.00082,66392.0,66391.0,0.23521484]
[1729899696169,0.00082,66392.0,66391.0,0.22220298]
[1729899696378,0.00082,66392.0,66391.0,0.23220298]
[1729899696598,0.00082,66392.0,66391.0,0.23420298]
[1729899696812,0.00082,66392.0,66391.0,0.08358098]
[1729899697943,0.00082,66392.0,66391.0,0.07358098]
[1729899698171,0.00082,66392.0,66391.0,0.01140145]
[1729899698384,0.00082,66392.0,66391.0,0.02140145]
[1729899699273,0.00082,66392.0,66391.0,0.01140145]
[1729899699487,0.00082,66392.0,66391.0,0.02140145]
[1729899700142,0.15144,66392.0,66391.0,0.00440145]
[1729899700658,0.452684,66392.0,66391.0,0.00440145]
[1729899701163,0.452684,66392.0,66390.0,0.00440145]
[1729899701164,0.150622,66391.0,66390.0,0.00440145]
[1729899701836,0.150622,66391.0,66390.0,0.00640145]
[1729899703158,0.00082,66392.0,66391.0,0.00440145]
[1729899703389,0.00082,66392.0,66391.0,0.00640145]
[1729899704329,0.00082,66392.0,66391.0,0.33973031]
[1729899705958,0.00082,66392.0,66391.0,0.33773031]
[1729899706164,0.00082,66392.0,66391.0,0.33973031]
[1729899706622,0.00082,66392.0,66391.0,0.33773031]
[1729899707042,0.00082,66392.0,66391.0,0.33973031]
[1729899707459,0.00082,66392.0,66391.0,0.18910831]
[1729899707690,0.00082,66392.0,66391.0,0.33973031]
[1729899709469,0.00082,66392.0,66391.0,0.18910831]
[1729899711853,0.00082,66392.0,66391.0,0.33973031]
[1729899712740,0.00082,66392.0,66391.0,0.33773031]
[1729899712993,0.00082,66392.0,66391.0,0.33973031]
[1729899713429,0.00082,66392.0,66391.0,0.18910831]
[1729899713633,0.00082,66392.0,66391.0,0.33973031]
[1729899717840,0.00082,66392.0,66391.0,0.34173031]
[1729899718306,0.22585429,66409.0,66408.0,0.17198545]
[1729899718526,0.22585429,66409.0,66408.0,0.32248926]
[1729899718969,0.00082,66414.0,66413.0,0.00640145]
[1729899719212,0.00082,66414.0,66413.0,0.02140145]
[1729899719488,0.15139,66414.0,66413.0,0.01140145]
[1729899719713,0.15139,66414.0,66413.0,0.02859198]
[1729899719934,0.15139,66414.0,66413.0,0.02659198]
[1729899720378,0.15139,66414.0,66413.0,0.00440145]
[1729899720814,0.39037624,66414.0,66413.0,0.00440145]
[1729899721258,0.150577,66411.0,66410.0,0.00440145]
[1729899721477,0.54094824,66414.0,66407.0,0.00440145]
[1729899721478,0.30115,66412.0,66407.0,0.00440145]
[1729899721695,0.38957024,66408.0,66407.0,0.00440145]
[1729899721915,0.150597,66402.0,66401.0,0.00440145]
[1729899722136,0.57538324,66402.0,66401.0,0.00440145]
[1729899722839,0.621796,66402.0,66401.0,0.00440145]
[1729899723069,0.38280976,66402.0,66401.0,0.00440145]
[1729899723355,0.38280976,66402.0,66395.0,0.00539355]
[1729899723356,0.74307429,66402.0,66395.0,0.00539355]
[1729899723576,0.38959724,66396.0,66395.0,0.0009921]
[1729899723793,0.43601,66396.0,66395.0,0.0009921]
[1729899724007,0.150616,66394.0,66393.0,0.00440145]
[1729899724227,0.19702876,66394.0,66393.0,0.00640145]
[1729899726511,0.04641276,66394.0,66393.0,0.15701945]
[1729899726738,0.04641276,66398.0,66397.0,0.16201045]
[1729899726979,0.301172,66408.0,66397.0,0.16201045]
[1729899726980,0.52699029,66416.0,66408.0,0.00440145]
[1729899727249,0.42294898,66409.0,66408.0,0.00440145]
[1729899727458,0.04651369,66409.0,66408.0,0.00640145]
[1729899727678,0.04651369,66413.0,66412.0,0.00640145]
[1729899727895,0.00082,66414.0,66413.0,0.01140145]
[1729899728839,0.04733979,66414.0,66413.0,0.01140145]
[1729899729068,0.04733979,66414.0,66413.0,0.00940145]
[1729899729299,0.04733979,66414.0,66413.0,0.002]
[1729899729535,0.150572,66413.0,66412.0,0.00440145]
[1729899729772,0.19709179,66413.0,66412.0,0.00440145]
[1729899730001,0.19709179,66413.0,66412.0,0.00640145]
[1729899730818,0.04651979,66413.0,66412.0,0.00640145]
[1729899731292,0.04651979,66413.0,66412.0,0.02259939]
[1729899731546,0.00082,66414.0,66413.0,0.16997345]
[1729899731778,0.00082,66414.0,66413.0,0.32548813]
[1729899731995,0.00082,66414.0,66413.0,0.32247726]
[1729899733126,0.00082,66414.0,66413.0,0.16990526]
[1729899733359,0.15139,66414.0,66413.0,0.00440145]
[1729899733621,0.00082,66414.0,66413.0,0.01140145]
[1729899733862,0.15139,66414.0,66413.0,0.00440145]
[1729899734102,0.15139,66414.0,66413.0,0.00640145]
[1729899734339,0.15139,66414.0,66413.0,0.01140145]
[1729899735293,0.00082,66414.0,66413.0,0.32247726]
[1729899735561,0.00082,66414.0,66413.0,0.38514221]
[1729899735801,0.00082,66414.0,66413.0,0.38714221]
[1729899736271,0.00082,66414.0,66413.0,0.38514221]
[1729899737254,0.00082,66414.0,66413.0,0.38714221]
[1729899737739,0.00082,66414.0,66413.0,0.38514221]
[1729899739227,0.00082,66414.0,66413.0,0.38714221]
[1729899739485,0.00082,66414.0,66413.0,0.38514221]
[1729899739760,0.00082,66414.0,66413.0,0.32247726]
[1729899740229,0.00082,66414.0,66413.0,0.32047726]
[1729899740475,0.00082,66414.0,66413.0,0.32447726]
[1729899740720,0.00082,66414.0,66413.0,0.32247726]
[1729899740954,0.00082,66414.0,66413.0,0.41515719]
[1729899741184,0.00082,66414.0,66413.0,0.41715719]
[1729899742406,0.00082,66414.0,66413.0,0.41315719]
[1729899743661,0.00082,66414.0,66413.0,0.49855719]
[1729899745197,0.00082,66414.0,66413.0,0.41515719]
[1729899745426,0.00082,66414.0,66413.0,0.41715719]
[1729899745866,0.00082,66414.0,66413.0,0.32047726]
[1729899746085,0.00082,66414.0,66413.0,0.32247726]
[1729899746559,0.00082,66414.0,66413.0,0.32047726]
[1729899746979,0.00082,66414.0,66413.0,0.32247726]
[1729899747189,0.00082,66414.0,66413.0,0.32047726]
[1729899747424,0.00082,66414.0,66413.0,0.41275719]
[1729899747672,0.00082,66414.0,66413.0,0.41475719]
[1729899748356,0.00082,66414.0,66413.0,0.16190526]
[1729899748571,0.00082,66414.0,66413.0,0.16990526]
[1729899748785,0.00082,66414.0,66413.0,0.17190526]
[1729899749030,0.00082,66414.0,66413.0,0.32548831]
[1729899749257,0.00082,66414.0,66413.0,0.32247726]
[1729899749473,0.00082,66414.0,66413.0,0.41495719]
[1729899750798,0.00082,66414.0,66413.0,0.32247726]
[1729899751494,0.00082,66414.0,66413.0,0.16990526]
[1729899751960,0.00082,66414.0,66413.0,0.00640145]
[1729899751961,0.30832937,66414.0,66413.0,0.00640145]
[1729899752176,0.30832937,66414.0,66406.0,0.01]
[1729899752177,0.35495937,66414.0,66406.0,0.002]
[1729899752395,0.150586,66407.0,66406.0,0.00640145]
[1729899752619,0.150586,66407.0,66406.0,0.00440145]
[1729899752842,0.150609,66397.0,66396.0,0.002]
[1729899753076,0.30754837,66397.0,66396.0,0.002]
[1729899753336,0.30754837,66397.0,66377.0,0.04498673]
[1729899753337,0.150618,66393.0,66387.0,0.23225574]
[1729899753564,0.30755737,66393.0,66390.0,0.00440145]
[1729899753806,0.35391805,66393.0,66389.0,0.00440145]
[1729899754081,0.50442186,66393.0,66386.0,0.002]
[1729899754326,0.93643201,66393.0,66386.0,0.002]
[1729899754532,1.04052203,66393.0,66386.0,0.002]
[1729899754752,0.9291485,66393.0,66386.0,0.002]
[1729899754984,0.551241,66392.0,66379.0,0.00538365]
[1729899755209,0.38940168,66380.0,66379.0,0.0009822]
[1729899755435,0.58660168,66380.0,66379.0,0.0009822]
[1729899755653,0.301304,66379.0,66376.0,0.00440145]
[1729899755866,0.150654,66377.0,66376.0,0.00440145]
[1729899756109,0.226654,66377.0,66376.0,0.00440145]
[1729899756570,0.226654,66377.0,66376.0,0.00640145]
[1729899757503,0.076,66377.0,66374.0,0.00640145]
[1729899757725,0.38941368,66375.0,66374.0,0.00640145]
[1729899757954,0.38941368,66375.0,66366.0,0.22684459]
[1729899757955,0.30133,66373.0,66366.0,0.0009903]
[1729899758183,0.150675,66368.0,66367.0,0.22785429]
[1729899758607,0.150675,66368.0,66367.0,0.002]
[1729899759036,0.38942968,66368.0,66367.0,0.002]
[1729899759260,0.38942968,66368.0,66367.0,0.00640145]
[1729899759732,0.150663,66373.0,66372.0,0.00640145]
[1729899759963,0.37651729,66373.0,66372.0,0.00640145]
[1729899760199,0.150672,66369.0,66368.0,0.00640145]
[1729899760442,0.38942668,66369.0,66368.0,0.00640145]
[1729899761172,0.38942668,66369.0,66368.0,0.00440145]
[1729899761410,0.38942668,66369.0,66367.0,0.002]
[1729899761411,0.150675,66368.0,66367.0,0.002]
[1729899761632,0.24988497,66368.0,66367.0,0.002]
[1729899762058,0.43548497,66368.0,66367.0,0.002]
[1729899762277,0.150681,66365.0,66364.0,0.00082]
[1729899769740,0.150681,66365.0,66364.0,0.00282]
[1729899770462,0.150681,66365.0,66364.0,0.00722145]
[1729899771392,0.2609057,66365.0,66364.0,0.00722145]
[1729899771636,0.2609057,66365.0,66364.0,0.00522145]
[1729899773296,0.2609057,66365.0,66364.0,0.00722145]
[1729899774554,0.2609057,66365.0,66364.0,0.00522145]
[1729899775509,0.2609057,66365.0,66364.0,0.00722145]
[1729899775734,0.2609057,66365.0,66364.0,0.00522145]
[1729899776447,0.57553938,66365.0,66364.0,0.00082]
[1729899777699,0.57553938,66365.0,66364.0,0.00722145]
[1729899777700,0.30799784,66365.0,66364.0,0.00722145]
[1729899780218,0.30799784,66365.0,66364.0,0.00522145]
[1729899780731,0.150672,66369.0,66368.0,0.00440145]
[1729899780938,0.150672,66369.0,66368.0,0.00640145]
[1729899783797,0.21160448,66369.0,66368.0,0.00440145]
[1729899784241,0.21160448,66369.0,66368.0,0.00640145]
[1729899784474,0.21160448,66369.0,66368.0,0.00440145]
[1729899784706,0.21160448,66369.0,66364.0,0.00082]
[1729899784707,0.150679,66366.0,66365.0,0.00440145]
[1729899784920,0.30799584,66366.0,66365.0,0.00440145]
[1729899785413,0.150681,66365.0,66364.0,0.00082]
[1729899785634,0.1969413,66365.0,66364.0,0.00522145]
[1729899785919,0.21469442,66365.0,66364.0,0.00082]
[1729899786125,0.50476195,66365.0,66364.0,0.00082]
[1729899786412,0.54154511,66365.0,66364.0,0.00082]
[1729899787295,0.1969413,66365.0,66364.0,0.00522145]
[1729899787515,0.1969413,66365.0,66364.0,0.00722145]
[1729899787950,0.26250211,66365.0,66364.0,0.00722145]
[1729899789040,0.1969413,66365.0,66364.0,0.00722145]
[1729899789489,0.0462603,66365.0,66364.0,0.00722145]
[1729899789944,0.150678,66367.0,66364.0,0.00722145]
[1729899790176,0.150678,66367.0,66366.0,0.002]
[1729899790393,0.19720928,66367.0,66366.0,0.002]
[1729899791280,0.19720928,66367.0,66366.0,0.15708045]
[1729899791281,0.04653128,66367.0,66366.0,0.15708045]
[1729899791515,0.04653128,66367.0,66366.0,0.20035253]
[1729899791741,0.37651529,66374.0,66373.0,0.00440145]
[1729899791964,0.42304574,66374.0,66373.0,0.00640145]
[1729899792183,0.19719145,66374.0,66373.0,0.00640145]
[1729899792416,0.42304574,66374.0,66373.0,0.00440145]
[1729899792635,0.31549011,66374.0,66373.0,0.00440145]
[1729899793087,0.19719145,66374.0,66373.0,0.00440145]
[1729899795231,0.19719145,66374.0,66373.0,0.00640145]
[1729899796729,0.19719145,66374.0,66371.0,0.00440145]
[1729899796730,0.27238474,66374.0,66371.0,0.00440145]
[1729899796971,0.150679,66366.0,66365.0,0.00440145]
[1729899797214,0.35452629,66366.0,66365.0,0.00440145]
[1729899797498,0.150681,66365.0,66364.0,0.00082]
[1729899797734,0.19721145,66365.0,66364.0,0.00082]
[1729899797975,0.26279888,66365.0,66364.0,0.00082]
[1729899798684,0.42405949,66365.0,66364.0,0.00082]
[1729899798909,0.41724646,66365.0,66364.0,0.00082]
[1729899799144,0.5745633,66365.0,66364.0,0.00082]
[1729899799640,0.61898743,66365.0,66364.0,0.00082]
[1729899799886,0.6411995,66365.0,66364.0,0.00082]
[1729899800120,0.150709,66353.0,66350.0,0.00440145]
[1729899800358,0.150709,66353.0,66348.0,0.00440145]
[1729899800359,0.5050601,66353.0,66348.0,0.00440145]
[1729899800811,0.150718,66349.0,66348.0,0.00440145]
[1729899800814,0.15072,66348.0,66347.0,0.00440145]
[1729899801045,0.19725045,66348.0,66347.0,0.00440145]
[1729899801339,0.226027,66345.0,66344.0,0.00440145]
[1729899801585,0.42987429,66345.0,66344.0,0.00440145]
[1729899802281,0.150734,66342.0,66341.0,0.00440145]
[1729899802531,0.150736,66341.0,66340.0,0.00440145]
[1729899802762,0.19726645,66341.0,66340.0,0.00440145]
[1729899802997,0.15074,66339.0,66336.0,0.002852]
[1729899803314,0.30124381,66339.0,66336.0,0.002852]
[1729899803532,0.34777426,66339.0,66336.0,0.000852]
[1729899803750,0.41996053,66339.0,66336.0,0.000852]
[1729899803971,0.82654512,66339.0,66336.0,0.000852]
[1729899804203,0.87112363,66339.0,66336.0,0.000852]
[1729899804451,0.8314966,66339.0,66336.0,0.000852]
[1729899804672,0.86768186,66339.0,66336.0,0.000852]
[1729899804881,0.83149587,66339.0,66336.0,0.000852]
[1729899805118,0.83149386,66339.0,66336.0,0.000852]
[1729899805557,0.80919308,66339.0,66336.0,0.000852]
[1729899805819,0.76467737,66339.0,66336.0,0.000852]
[1729899806261,0.53017426,66339.0,66336.0,0.000852]
[1729899807619,0.37967045,66339.0,66336.0,0.000852]
[1729899808085,0.37967045,66339.0,66336.0,0.00525345]
[1729899808352,0.37967045,66339.0,66336.0,0.00725345]
[1729899808995,0.33314,66339.0,66336.0,0.00725345]
[1729899809214,0.3794001,66339.0,66336.0,0.00525345]
[1729899809675,0.33314,66339.0,66336.0,0.00525345]
[1729899809904,0.48364381,66339.0,66336.0,0.00525345]
[1729899810124,0.68039385,66339.0,66336.0,0.000852]
[1729899810769,0.68039101,66339.0,66336.0,0.000852]
[1729899811410,0.63414762,66339.0,66336.0,0.000852]
[1729899812737,0.63414762,66339.0,66337.0,0.002]
[1729899812956,0.63414762,66339.0,66336.0,0.000852]
[1729899814091,0.63414762,66339.0,66338.0,0.00052444]
[1729899814092,0.48364381,66339.0,66338.0,0.00052444]
[1729899815642,0.52984832,66339.0,66338.0,0.00052444]
[1729899816804,0.52984832,66339.0,66336.0,0.000852]
[1729899816805,0.85496261,66339.0,66336.0,0.000852]
[1729899817017,0.85496261,66339.0,66325.0,0.000853]
[1729899817018,0.15077,66326.0,66325.0,0.000853]
[1729899817233,0.30127381,66326.0,66325.0,0.000853]
[1729899817449,0.45859065,66326.0,66325.0,0.000853]
[1729899818306,0.46252729,66326.0,66325.0,0.000853]
[1729899818521,0.48749058,66326.0,66325.0,0.000853]
[1729899818953,0.33017374,66326.0,66325.0,0.000853]
[1729899819152,0.48749058,66326.0,66325.0,0.000853]
[1729899819587,0.15470664,66326.0,66325.0,0.000853]
[1729899819807,0.15470664,66326.0,66325.0,0.002853]
[1729899819808,0.31202348,66326.0,66325.0,0.002853]
[1729899820017,0.31202348,66326.0,66325.0,0.000853]
[1729899821373,0.15077,66326.0,66325.0,0.00725445]
[1729899822491,0.15077,66326.0,66325.0,0.00525445]
[1729899822708,0.452277,66331.0,66330.0,0.00640145]
[1729899823350,0.51323638,66331.0,66330.0,0.00640145]
[1729899823836,0.51323638,66331.0,66330.0,0.00440145]
[1729899824351,0.60959384,66331.0,66330.0,0.00640145]
[1729899825281,0.60959384,66331.0,66330.0,0.00522245]
[1729899825493,0.60959384,66331.0,66330.0,0.00722245]
[1729899826127,0.452277,66331.0,66330.0,0.00722245]
[1729899826363,0.452277,66331.0,66330.0,0.00522245]
[1729899826574,0.452277,66331.0,66330.0,0.00722245]
[1729899827248,0.452277,66331.0,66325.0,0.000853]
[1729899827249,0.15077,66326.0,66325.0,0.000853]
[1729899827467,0.34754749,66326.0,66325.0,0.000853]
[1729899827702,0.50486433,66326.0,66325.0,0.000853]
[1729899827949,0.35436052,66326.0,66325.0,0.000853]
[1729899828174,0.35436052,66326.0,66325.0,0.00525445]
[1729899828429,0.35436052,66326.0,66325.0,0.00725445]
[1729899828430,0.30808684,66326.0,66325.0,0.00725445]
[1729899828674,0.30808684,66326.0,66325.0,0.00525445]
[1729899828895,0.15077,66326.0,66325.0,0.00525445]
[1729899829839,1.17588685,66326.0,66325.0,0.000853]
[1729899830279,1.01857001,66326.0,66325.0,0.000853]
[1729899830952,1.17588685,66326.0,66325.0,0.000853]
[1729899831181,1.01857001,66326.0,66325.0,0.000853]
[1729899831795,1.17588685,66326.0,66325.0,0.000853]
[1729899832033,0.25,66319.0,66312.0,0.22769579]
[1729899832259,0.50498801,66318.0,66312.0,0.22769579]
[1729899832705,0.34767117,66318.0,66312.0,0.000852]
[1729899833162,0.34767117,66318.0,66312.0,0.002852]
[1729899833398,0.34767117,66318.0,66312.0,0.000852]
[1729899833617,0.19716736,66318.0,66314.0,0.00440145]
[1729899834053,0.37944749,66318.0,66314.0,0.00440145]
[1729899834741,0.22213065,66318.0,66315.0,0.002]
[1729899834974,0.37944749,66318.0,66315.0,0.002]
[1729899835438,0.37944749,66318.0,66314.0,0.00640145]
[1729899835881,0.38341427,66318.0,66314.0,0.00440145]
[1729899836804,0.38341427,66318.0,66314.0,0.00640145]
[1729899837307,0.38341427,66318.0,66312.0,0.000852]
[1729899837308,0.20113414,66318.0,66317.0,0.00525345]
[1729899837536,0.19716736,66318.0,66317.0,0.00525345]
[1729899837755,0.452324,66324.0,66323.0,0.00640145]
[1729899838036,0.72469842,66324.0,66323.0,0.00640145]
[1729899838261,0.04652013,66324.0,66323.0,0.00640145]
[1729899838486,0.152403,66330.0,66329.0,0.00640145]
[1729899838707,0.19893219,66330.0,66329.0,0.00640145]
[1729899840729,0.35624903,66330.0,66329.0,0.00440145]
[1729899841629,0.37984847,66330.0,66329.0,0.00440145]
[1729899841931,0.22253163,66330.0,66329.0,0.00440145]
[1729899842595,0.22253163,66330.0,66329.0,0.00640145]
[1729899843555,0.22253163,66330.0,66329.0,0.01140145]